Workbook

Sheet 2013-14M
K1: Hamlet Open Sabre | N1: Bedford Junior | P1: Selection Date - Sosnowiec | Q1: Gateshead | S1: Selection Date - Dormagen | T1: Sosnowiec WC, POL | W1: Dormagen WC, GER | Z1: Beazley British Championships | AB1: Selection Date - Dourdan | AC1: Ligano Sabbiadoro WC, ITA | AF1: Dourdan WC, FRA | AH1: Selection Date - European Championships | AI1: U20 National Championships | AK1: Selection Date - World Championships | AL1: European Championships, Jerusalem, ISR | AO1: World Championships, Plovdiv, BGR
B2: 26 October 2013 | K2: 08/09/2013 | N2: 29/09/2013 | P2: 29/09/2013 | Q2: 26/10/2013 | S2: 27/10/2013 | T2: 17/11/2013 | W2: 30/11/2013 | Z2: 08/12/2013 | AB2: 08/12/2013 | AC2: 05/01/2014 | AF2: 18/01/2014 | AH2: 19/01/2014 | AI2: 09/02/2014 | AK2: 09/02/2014 | AL2: 28/02-04/03/2014 | AO2: 07-12/04/2014
J3: NIF | L3: 200 (100*2) | O3: 97 | R3: 68
J4: CompType | L4: dom | O4: dom | R4: dom | U4: int | X4: int | AA4: nat | AD4: int | AG4: int | AJ4: nat | AM4: int | AP4: int
J5: Entries | L5: 99 | O5: 71 | R5: 23
J6: Cutoff | L6: 64 | O6: 53 | R6: 17
J7: Entry Form
A8: Rank | B8: Name | C8: Club | D8: HC | E8: Year | F8: Nats | G8: Dom | H8: Int | I8: Total | J8: Nt+Dm+In
A9: 1 | B9: AMSALEM, Rubin | C9: Camden | D9: ENG | E9: 96 | F9: 0 | G9: 5821 | H9: 0 | I9: 5821 | J9: 0+3+0 | K9: 3rd | L9: =IF(eVAL(K9)<=L$6,VLOOKUP(eVAL(K9),Multiplier,2)*eVAL(L$3),0) -> 3200 | N9: 5th | O9: =IF(eVAL(N9)<=O$6,VLOOKUP(eVAL(N9),Multiplier,2)*eVAL(O$3),0) -> 1261 | Q9: 1st | R9: =IF(eVAL(Q9)<=R$6,VLOOKUP(eVAL(Q9),Multiplier,2)*eVAL(R$3),0) -> 1360
A10: 2 | B10: SAUNDERS, Brynmor | C10: Truro | D10: ENG | E10: 94 | F10: 0 | G10: 4665.48 | H10: 0 | I10: 4665.48 | J10: 0+3+0 | K10: 7th | L10: =IF(eVAL(K10)<=L$6,VLOOKUP(eVAL(K10),Multiplier,2)*eVAL(L$3),0) -> 2584 | N10: 10th | O10: =IF(eVAL(N10)<=O$6,VLOOKUP(eVAL(N10),Multiplier,2)*eVAL(O$3),0) -> 857.48 | Q10: 2nd | R10: =IF(eVAL(Q10)<=R$6,VLOOKUP(eVAL(Q10),Multiplier,2)*eVAL(R$3),0) -> 1224
A11: 3 | B11: POTTER, James | C11: Camden | D11: WAL | E11: 94 | F11: 0 | G11: 3870.52 | H11: 0 | I11: 3870.52 | J11: 0+3+0 | K11: 14th | L11: =IF(eVAL(K11)<=L$6,VLOOKUP(eVAL(K11),Multiplier,2)*eVAL(L$3),0) -> 1736 | N11: 7th | O11: =IF(eVAL(N11)<=O$6,VLOOKUP(eVAL(N11),Multiplier,2)*eVAL(O$3),0) -> 1253.24 | Q11: 6th | R11: =IF(eVAL(Q11)<=R$6,VLOOKUP(eVAL(Q11),Multiplier,2)*eVAL(R$3),0) -> 881.28
A12: 4 | B12: GANDER-COMPTON, Jacob | C12: Camden | D12: ENG | E12: 95 | F12: 0 | G12: 3861.36 | H12: 0 | I12: 3861.36 | J12: 0+3+0 | K12: 15th | L12: =IF(eVAL(K12)<=L$6,VLOOKUP(eVAL(K12),Multiplier,2)*eVAL(L$3),0) -> 1728 | N12: 8th | O12: =IF(eVAL(N12)<=O$6,VLOOKUP(eVAL(N12),Multiplier,2)*eVAL(O$3),0) -> 1249.36 | Q12: 5th | R12: =IF(eVAL(Q12)<=R$6,VLOOKUP(eVAL(Q12),Multiplier,2)*eVAL(R$3),0) -> 884
A13: 5 | B13: DEARY, William | C13: Truro | D13: ENG | E13: 97 | F13: 0 | G13: 3692 | H13: 0 | I13: 3692 | J13: 0+2+0 | K13: 12th | L13: =IF(eVAL(K13)<=L$6,VLOOKUP(eVAL(K13),Multiplier,2)*eVAL(L$3),0) -> 1752 | N13: 1st | O13: =IF(eVAL(N13)<=O$6,VLOOKUP(eVAL(N13),Multiplier,2)*eVAL(O$3),0) -> 1940
A14: 6 | B14: ROGERSON, Noah | C14: Truro | D14: ENG | E14: 95 | F14: 0 | G14: 3664 | H14: 0 | I14: 3664 | J14: 0+3+0 | K14: 29th | L14: =IF(eVAL(K14)<=L$6,VLOOKUP(eVAL(K14),Multiplier,2)*eVAL(L$3),0) -> 1024 | N14: 3rd | O14: =IF(eVAL(N14)<=O$6,VLOOKUP(eVAL(N14),Multiplier,2)*eVAL(O$3),0) -> 1552 | Q14: 3rd | R14: =IF(eVAL(Q14)<=R$6,VLOOKUP(eVAL(Q14),Multiplier,2)*eVAL(R$3),0) -> 1088
A15: 7 | B15: WEBB, Jonathan | C15: Camden | D15: ENG | E15: 96 | F15: 0 | G15: 3222 | H15: 0 | I15: 3222 | J15: 0+3+0 | K15: 36th | L15: =IF(eVAL(K15)<=L$6,VLOOKUP(eVAL(K15),Multiplier,2)*eVAL(L$3),0) -> 388 | N15: 2nd | O15: =IF(eVAL(N15)<=O$6,VLOOKUP(eVAL(N15),Multiplier,2)*eVAL(O$3),0) -> 1746 | Q15: 3rd | R15: =IF(eVAL(Q15)<=R$6,VLOOKUP(eVAL(Q15),Multiplier,2)*eVAL(R$3),0) -> 1088
A16: 8 | B16: SCOTT, Stuart | C16: Lazlo | D16: SCO | E16: 94 | F16: 0 | G16: 3153.76 | H16: 0 | I16: 3153.76 | J16: 0+3+0 | K16: 16th | L16: =IF(eVAL(K16)<=L$6,VLOOKUP(eVAL(K16),Multiplier,2)*eVAL(L$3),0) -> 1720 | N16: 15th | O16: =IF(eVAL(N16)<=O$6,VLOOKUP(eVAL(N16),Multiplier,2)*eVAL(O$3),0) -> 838.08 | Q16: 12th | R16: =IF(eVAL(Q16)<=R$6,VLOOKUP(eVAL(Q16),Multiplier,2)*eVAL(R$3),0) -> 595.68
A17: 9 | B17: WOODBURN, Fraser | C17: Truro | D17: SCO | E17: 97 | F17: 0 | G17: 2600 | H17: 0 | I17: 2600 | J17: 0+2+0 | K17: 26th | L17: =IF(eVAL(K17)<=L$6,VLOOKUP(eVAL(K17),Multiplier,2)*eVAL(L$3),0) -> 1048 | N17: 3rd | O17: =IF(eVAL(N17)<=O$6,VLOOKUP(eVAL(N17),Multiplier,2)*eVAL(O$3),0) -> 1552
A18: 10 | B18: DOWSE, Niall | C18: MX Fencing | D18: NIR | E18: 94 | F18: 0 | G18: 2144.64 | H18: 0 | I18: 2144.64 | J18: 0+3+0 | K18: 58th | L18: =IF(eVAL(K18)<=L$6,VLOOKUP(eVAL(K18),Multiplier,2)*eVAL(L$3),0) -> 300 | N18: 6th | O18: =IF(eVAL(N18)<=O$6,VLOOKUP(eVAL(N18),Multiplier,2)*eVAL(O$3),0) -> 1257.12 | Q18: 15th | R18: =IF(eVAL(Q18)<=R$6,VLOOKUP(eVAL(Q18),Multiplier,2)*eVAL(R$3),0) -> 587.52
A19: 11 | B19: POTTER, Nathan | C19: Camden | D19: WAL | E19: 96 | F19: 0 | G19: 2135.92 | H19: 0 | I19: 2135.92 | J19: 0+3+0 | K19: 34th | L19: =IF(eVAL(K19)<=L$6,VLOOKUP(eVAL(K19),Multiplier,2)*eVAL(L$3),0) -> 396 | N19: 9th | O19: =IF(eVAL(N19)<=O$6,VLOOKUP(eVAL(N19),Multiplier,2)*eVAL(O$3),0) -> 861.36 | Q19: 7th | R19: =IF(eVAL(Q19)<=R$6,VLOOKUP(eVAL(Q19),Multiplier,2)*eVAL(R$3),0) -> 878.56
A20: 12 | B20: VEITCH, Robert | C20: Rivington Park | D20: SCO | E20: 94 | F20: 0 | G20: 2079.12 | H20: 0 | I20: 2079.12 | J20: 0+3+0 | K20: 32nd | L20: =IF(eVAL(K20)<=L$6,VLOOKUP(eVAL(K20),Multiplier,2)*eVAL(L$3),0) -> 1000 | N20: 31st | O20: =IF(eVAL(N20)<=O$6,VLOOKUP(eVAL(N20),Multiplier,2)*eVAL(O$3),0) -> 488.88 | Q20: 14th | R20: =IF(eVAL(Q20)<=R$6,VLOOKUP(eVAL(Q20),Multiplier,2)*eVAL(R$3),0) -> 590.24
A21: 13 | B21: COOPER, Samuel | C21: Shakespeare's Swords | D21: ENG | E21: 95 | F21: 0 | G21: 1861.14 | H21: 0 | I21: 1861.14 | J21: 0+3+0 | K21: 22nd | L21: =IF(eVAL(K21)<=L$6,VLOOKUP(eVAL(K21),Multiplier,2)*eVAL(L$3),0) -> 1080 | N21: 36th | O21: =IF(eVAL(N21)<=O$6,VLOOKUP(eVAL(N21),Multiplier,2)*eVAL(O$3),0) -> 188.18 | Q21: 13th | R21: =IF(eVAL(Q21)<=R$6,VLOOKUP(eVAL(Q21),Multiplier,2)*eVAL(R$3),0) -> 592.96
A22: 14 | B22: ALDOUS-GRANBY, James | C22: Foyle & Londonderry | D22: GUE | E22: 95 | F22: 0 | G22: 1812.12 | H22: 0 | I22: 1812.12 | J22: 0+3+0 | K22: 42nd | L22: =IF(eVAL(K22)<=L$6,VLOOKUP(eVAL(K22),Multiplier,2)*eVAL(L$3),0) -> 364 | N22: 12th | O22: =IF(eVAL(N22)<=O$6,VLOOKUP(eVAL(N22),Multiplier,2)*eVAL(O$3),0) -> 849.72 | Q22: 11th | R22: =IF(eVAL(Q22)<=R$6,VLOOKUP(eVAL(Q22),Multiplier,2)*eVAL(R$3),0) -> 598.4
A23: 15 | B23: SAUNDERS, Awen | C23: Truro | D23: ENG | E23: 97 | F23: 0 | G23: 1758.96 | H23: 0 | I23: 1758.96 | J23: 0+3+0 | K23: 55th | L23: =IF(eVAL(K23)<=L$6,VLOOKUP(eVAL(K23),Multiplier,2)*eVAL(L$3),0) -> 312 | N23: 13th | O23: =IF(eVAL(N23)<=O$6,VLOOKUP(eVAL(N23),Multiplier,2)*eVAL(O$3),0) -> 845.84 | Q23: 10th | R23: =IF(eVAL(Q23)<=R$6,VLOOKUP(eVAL(Q23),Multiplier,2)*eVAL(R$3),0) -> 601.12
A24: 16 | B24: MAXWELL, Josh | C24: Truro | D24: ENG | E24: 97 | F24: 0 | G24: 1552.64 | H24: 0 | I24: 1552.64 | J24: 0+2+0 | K24: 25th | L24: =IF(eVAL(K24)<=L$6,VLOOKUP(eVAL(K24),Multiplier,2)*eVAL(L$3),0) -> 1056 | N24: 29th | O24: =IF(eVAL(N24)<=O$6,VLOOKUP(eVAL(N24),Multiplier,2)*eVAL(O$3),0) -> 496.64
A25: 17 | B25: WILLIAMSON, Andrew | C25: Edinburgh | D25: SCO | E25: 95 | F25: 0 | G25: 1432.14 | H25: 0 | I25: 1432.14 | J25: 0+3+0 | K25: 40th | L25: =IF(eVAL(K25)<=L$6,VLOOKUP(eVAL(K25),Multiplier,2)*eVAL(L$3),0) -> 372 | N25: 38th | O25: =IF(eVAL(N25)<=O$6,VLOOKUP(eVAL(N25),Multiplier,2)*eVAL(O$3),0) -> 184.3 | Q25: 8th | R25: =IF(eVAL(Q25)<=R$6,VLOOKUP(eVAL(Q25),Multiplier,2)*eVAL(R$3),0) -> 875.84
A26: 18 | B26: MOORE, William | C26: Camden | D26: ENG | E26: 96 | F26: 0 | G26: 1415.28 | H26: 0 | I26: 1415.28 | J26: 0+3+0 | K26: 64th | L26: =IF(eVAL(K26)<=L$6,VLOOKUP(eVAL(K26),Multiplier,2)*eVAL(L$3),0) -> 276 | N26: 19th | O26: =IF(eVAL(N26)<=O$6,VLOOKUP(eVAL(N26),Multiplier,2)*eVAL(O$3),0) -> 535.44 | Q26: 9th | R26: =IF(eVAL(Q26)<=R$6,VLOOKUP(eVAL(Q26),Multiplier,2)*eVAL(R$3),0) -> 603.84
A27: 19 | B27: HALLIWELL, William | C27: Shakespeare's Swords | D27: ENG | E27: 96 | F27: 0 | G27: 1201.96 | H27: 0 | I27: 1201.96 | J27: 0+2+0 | K27: 43rd | L27: =IF(eVAL(K27)<=L$6,VLOOKUP(eVAL(K27),Multiplier,2)*eVAL(L$3),0) -> 360 | N27: 14th | O27: =IF(eVAL(N27)<=O$6,VLOOKUP(eVAL(N27),Multiplier,2)*eVAL(O$3),0) -> 841.96
A28: 20 | B28: AMSALEM, Eden | C28: Camden | D28: ENG | E28: 98 | F28: 0 | G28: 1149.6 | H28: 0 | I28: 1149.6 | J28: 0+2+0 | K28: 59th | L28: =IF(eVAL(K28)<=L$6,VLOOKUP(eVAL(K28),Multiplier,2)*eVAL(L$3),0) -> 296 | N28: 11th | O28: =IF(eVAL(N28)<=O$6,VLOOKUP(eVAL(N28),Multiplier,2)*eVAL(O$3),0) -> 853.6
A29: 21 | B29: JACKSON, Thomas | C29: Shakespeare's Swords | D29: WAL | E29: 99 | F29: 0 | G29: 1069.8 | H29: 0 | I29: 1069.8 | J29: 0+3+0 | K29: 68th | L29: =IF(eVAL(K29)<=L$6,VLOOKUP(eVAL(K29),Multiplier,2)*eVAL(L$3),0) -> 0 | N29: 32nd | O29: =IF(eVAL(N29)<=O$6,VLOOKUP(eVAL(N29),Multiplier,2)*eVAL(O$3),0) -> 485 | Q29: 16th | R29: =IF(eVAL(Q29)<=R$6,VLOOKUP(eVAL(Q29),Multiplier,2)*eVAL(R$3),0) -> 584.8
A30: 22 | B30: EDMUNDSON, Jack | C30: South London Swords | D30: ENG | E30: 97 | F30: 0 | G30: 927.2 | H30: 0 | I30: 927.2 | J30: 0+2+0 | K30: 37th | L30: =IF(eVAL(K30)<=L$6,VLOOKUP(eVAL(K30),Multiplier,2)*eVAL(L$3),0) -> 384 | N30: 17th | O30: =IF(eVAL(N30)<=O$6,VLOOKUP(eVAL(N30),Multiplier,2)*eVAL(O$3),0) -> 543.2
A31: 23 | B31: HAMILTON, Thomas Zachary | C31: Shakespeare's Swords | D31: ENG | E31: 99 | F31: 0 | G31: 911.92 | H31: 0 | I31: 911.92 | J31: 0+2+0 | K31: 35th | L31: =IF(eVAL(K31)<=L$6,VLOOKUP(eVAL(K31),Multiplier,2)*eVAL(L$3),0) -> 392 | N31: 23rd | O31: =IF(eVAL(N31)<=O$6,VLOOKUP(eVAL(N31),Multiplier,2)*eVAL(O$3),0) -> 519.92
A32: 24 | B32: DACEY, Simon | C32: MX Fencing | D32: ENG | E32: 97 | F32: 0 | G32: 907.32 | H32: 0 | I32: 907.32 | J32: 0+2+0 | K32: 41st | L32: =IF(eVAL(K32)<=L$6,VLOOKUP(eVAL(K32),Multiplier,2)*eVAL(L$3),0) -> 368 | N32: 18th | O32: =IF(eVAL(N32)<=O$6,VLOOKUP(eVAL(N32),Multiplier,2)*eVAL(O$3),0) -> 539.32
A33: 25 | B33: BURTON, George Edward | C33: Bedford | D33: ENG | E33: 96 | F33: 0 | G33: 864.28 | H33: 0 | I33: 864.28 | J33: 0+2+0 | K33: 44th | L33: =IF(eVAL(K33)<=L$6,VLOOKUP(eVAL(K33),Multiplier,2)*eVAL(L$3),0) -> 356 | N33: 26th | O33: =IF(eVAL(N33)<=O$6,VLOOKUP(eVAL(N33),Multiplier,2)*eVAL(O$3),0) -> 508.28
A34: 26 | B34: CRAZE, Jamie | C34: Truro | D34: ENG | E34: 99 | F34: 0 | G34: 834.2 | H34: 0 | I34: 834.2 | J34: 0+2+0 | K34: 85th | L34: =IF(eVAL(K34)<=L$6,VLOOKUP(eVAL(K34),Multiplier,2)*eVAL(L$3),0) -> 0 | N34: 16th | O34: =IF(eVAL(N34)<=O$6,VLOOKUP(eVAL(N34),Multiplier,2)*eVAL(O$3),0) -> 834.2
A35: 27 | B35: HARRIS, Rafe | C35: Millfield | D35: ENG | E35: 96 | F35: 0 | G35: 811.56 | H35: 0 | I35: 811.56 | J35: 0+2+0 | K35: 63rd | L35: =IF(eVAL(K35)<=L$6,VLOOKUP(eVAL(K35),Multiplier,2)*eVAL(L$3),0) -> 280 | N35: 20th | O35: =IF(eVAL(N35)<=O$6,VLOOKUP(eVAL(N35),Multiplier,2)*eVAL(O$3),0) -> 531.56
A36: 28 | B36: HAWKINS, Philip | C36: Brentwood School | D36: ENG | E36: 96 | F36: 0 | G36: 603.84 | H36: 0 | I36: 603.84 | J36: 0+2+0 | N36: 55th | O36: =IF(eVAL(N36)<=O$6,VLOOKUP(eVAL(N36),Multiplier,2)*eVAL(O$3),0) -> 0
A37: 29 | B37: RUSSEN, Matthew | C37: Brentwood School | D37: ENG | E37: 96 | F37: 0 | G37: 561.22 | H37: 0 | I37: 561.22 | J37: 0+2+0 | N37: 40th | O37: =IF(eVAL(N37)<=O$6,VLOOKUP(eVAL(N37),Multiplier,2)*eVAL(O$3),0) -> 180.42 | Q37: 17th | R37: =IF(eVAL(Q37)<=R$6,VLOOKUP(eVAL(Q37),Multiplier,2)*eVAL(R$3),0) -> 380.8
A38: 30 | B38: WATT, Caspian | C38: Shakespeare's Swords | D38: ENG | E38: 98 | F38: 0 | G38: 527.68 | H38: 0 | I38: 527.68 | J38: 0+2+0 | K38: 74th | L38: =IF(eVAL(K38)<=L$6,VLOOKUP(eVAL(K38),Multiplier,2)*eVAL(L$3),0) -> 0 | N38: 21st | O38: =IF(eVAL(N38)<=O$6,VLOOKUP(eVAL(N38),Multiplier,2)*eVAL(O$3),0) -> 527.68
A39: 31 | B39: BERGNE, Achille | C39: Escrime | D39: ENG | E39: 98 | F39: 0 | G39: 523.8 | H39: 0 | I39: 523.8 | J39: 0+1+0 | N39: 22nd | O39: =IF(eVAL(N39)<=O$6,VLOOKUP(eVAL(N39),Multiplier,2)*eVAL(O$3),0) -> 523.8
A40: 32 | B40: WALWYN, Nathanael | C40: Regent | D40: JER | E40: 97 | F40: 0 | G40: 520.06 | H40: 0 | I40: 520.06 | J40: 0+2+0 | K40: 51st | L40: =IF(eVAL(K40)<=L$6,VLOOKUP(eVAL(K40),Multiplier,2)*eVAL(L$3),0) -> 328 | N40: 34th | O40: =IF(eVAL(N40)<=O$6,VLOOKUP(eVAL(N40),Multiplier,2)*eVAL(O$3),0) -> 192.06
A41: 33 | B41: HOSKING, William | C41: Truro | D41: ENG | E41: 96 | F41: 0 | G41: 516.04 | H41: 0 | I41: 516.04 | J41: 0+1+0 | N41: 24th | O41: =IF(eVAL(N41)<=O$6,VLOOKUP(eVAL(N41),Multiplier,2)*eVAL(O$3),0) -> 516.04
A42: 34 | B42: HOWES, Nicholas | C42: South London Swords | D42: ENG | E42: 98 | F42: 0 | G42: 512.16 | H42: 0 | I42: 512.16 | J42: 0+2+0 | K42: 92nd | L42: =IF(eVAL(K42)<=L$6,VLOOKUP(eVAL(K42),Multiplier,2)*eVAL(L$3),0) -> 0 | N42: 25th | O42: =IF(eVAL(N42)<=O$6,VLOOKUP(eVAL(N42),Multiplier,2)*eVAL(O$3),0) -> 512.16
A43: 35 | B43: LINDLEY, Thomas | C43: Rivington Park | D43: ENG | E43: 97 | F43: 0 | G43: 504.4 | H43: 0 | I43: 504.4 | J43: 0+2+0 | K43: 75th | L43: =IF(eVAL(K43)<=L$6,VLOOKUP(eVAL(K43),Multiplier,2)*eVAL(L$3),0) -> 0 | N43: 27th | O43: =IF(eVAL(N43)<=O$6,VLOOKUP(eVAL(N43),Multiplier,2)*eVAL(O$3),0) -> 504.4
A44: 36 | B44: LINDSAY, Christian | C44: Escrime | D44: ENG | E44: 98 | F44: 0 | G44: 500.52 | H44: 0 | I44: 500.52 | J44: 0+1+0 | N44: 28th | O44: =IF(eVAL(N44)<=O$6,VLOOKUP(eVAL(N44),Multiplier,2)*eVAL(O$3),0) -> 500.52
A45: 37 | B45: FLORENCE, Isaac | C45: Ddraig Wern | D45: WAL | E45: 97 | F45: 0 | G45: 492.76 | H45: 0 | I45: 492.76 | J45: 0+2+0 | K45: 92nd | L45: =IF(eVAL(K45)<=L$6,VLOOKUP(eVAL(K45),Multiplier,2)*eVAL(L$3),0) -> 0 | N45: 30th | O45: =IF(eVAL(N45)<=O$6,VLOOKUP(eVAL(N45),Multiplier,2)*eVAL(O$3),0) -> 492.76
A46: 38 | B46: BOWLEY, Stan | C46: Rivington Park | D46: ENG | E46: 94 | F46: 0 | G46: 464.66 | H46: 0 | I46: 464.66 | J46: 0+2+0 | K46: 60th | L46: =IF(eVAL(K46)<=L$6,VLOOKUP(eVAL(K46),Multiplier,2)*eVAL(L$3),0) -> 292 | N46: 44th | O46: =IF(eVAL(N46)<=O$6,VLOOKUP(eVAL(N46),Multiplier,2)*eVAL(O$3),0) -> 172.66
A47: FRA | B47: VAN HOFFELEN, Raphael | C47: Gemenos | D47: FRA | E47: 97 | F47: 0 | G47: 352 | H47: 0 | I47: 352 | J47: 0+1+0 | K47: 45th | L47: =IF(eVAL(K47)<=L$6,VLOOKUP(eVAL(K47),Multiplier,2)*eVAL(L$3),0) -> 352
A48: 39 | B48: FIRTH, James | C48: Room 1 on 1 | D48: GUE | E48: 94 | F48: 0 | G48: 336 | H48: 0 | I48: 336 | J48: 0+1+0 | K48: 49th | L48: =IF(eVAL(K48)<=L$6,VLOOKUP(eVAL(K48),Multiplier,2)*eVAL(L$3),0) -> 336
A49: 40 | B49: ROONEY, Samuel | C49: Escrime | D49: ENG | E49: 99 | F49: 0 | G49: 194 | H49: 0 | I49: 194 | J49: 0+1+0 | N49: 33rd | O49: =IF(eVAL(N49)<=O$6,VLOOKUP(eVAL(N49),Multiplier,2)*eVAL(O$3),0) -> 194
A50: 41 | B50: REN, Etan | C50: Russell Swords | D50: WAL | F50: 0 | G50: 192.06 | H50: 0 | I50: 192.06 | J50: 0+1+0 | N50: 34th | O50: =IF(eVAL(N50)<=O$6,VLOOKUP(eVAL(N50),Multiplier,2)*eVAL(O$3),0) -> 192.06
A51: 42 | B51: ESTEVES, Nuno | C51: Camden | D51: ENG | E51: 95 | F51: 0 | G51: 186.24 | H51: 0 | I51: 186.24 | J51: 0+1+0 | N51: 37th | O51: =IF(eVAL(N51)<=O$6,VLOOKUP(eVAL(N51),Multiplier,2)*eVAL(O$3),0) -> 186.24
A52: 43 | B52: GENTZ, Philipp | C52: Edinburgh | D52: SCO | F52: 0 | G52: 182.36 | H52: 0 | I52: 182.36 | J52: 0+2+0 | N52: 39th | O52: =IF(eVAL(N52)<=O$6,VLOOKUP(eVAL(N52),Multiplier,2)*eVAL(O$3),0) -> 182.36 | Q52: 21st | R52: =IF(eVAL(Q52)<=R$6,VLOOKUP(eVAL(Q52),Multiplier,2)*eVAL(R$3),0) -> 0
A53: 44 | B53: HILDER, Joe | C53: MX Fencing | D53: ENG | E53: 98 | F53: 0 | G53: 178.48 | H53: 0 | I53: 178.48 | J53: 0+1+0 | N53: 41st | O53: =IF(eVAL(N53)<=O$6,VLOOKUP(eVAL(N53),Multiplier,2)*eVAL(O$3),0) -> 178.48
A54: 45 | B54: BERNSTEIN, Richard | C54: Millfield | D54: ENG | E54: 96 | F54: 0 | G54: 176.54 | H54: 0 | I54: 176.54 | J54: 0+1+0 | N54: 42nd | O54: =IF(eVAL(N54)<=O$6,VLOOKUP(eVAL(N54),Multiplier,2)*eVAL(O$3),0) -> 176.54
A55: 46 | B55: FOTHERBY, James | C55: Oxford | D55: ENG | E55: 97 | F55: 0 | G55: 174.6 | H55: 0 | I55: 174.6 | J55: 0+1+0 | N55: 43rd | O55: =IF(eVAL(N55)<=O$6,VLOOKUP(eVAL(N55),Multiplier,2)*eVAL(O$3),0) -> 174.6
A56: 47 | B56: HAWKER, John | C56: MX Fencing | D56: ENG | F56: 0 | G56: 170.72 | H56: 0 | I56: 170.72 | J56: 0+1+0 | N56: 45th | O56: =IF(eVAL(N56)<=O$6,VLOOKUP(eVAL(N56),Multiplier,2)*eVAL(O$3),0) -> 170.72
A57: 48 | B57: MORRESI, Matteo | C57: Escrime | D57: ENG | E57: 98 | F57: 0 | G57: 168.78 | H57: 0 | I57: 168.78 | J57: 0+1+0 | N57: 46th | O57: =IF(eVAL(N57)<=O$6,VLOOKUP(eVAL(N57),Multiplier,2)*eVAL(O$3),0) -> 168.78
A58: 49 | B58: TALBOT, Henry | C58: Shakespeare's Swords | D58: WAL | E58: 99 | F58: 0 | G58: 166.84 | H58: 0 | I58: 166.84 | J58: 0+1+0 | N58: 47th | O58: =IF(eVAL(N58)<=O$6,VLOOKUP(eVAL(N58),Multiplier,2)*eVAL(O$3),0) -> 166.84
A59: 50 | B59: NELSON, Jordan | C59: South London Swords | D59: ENG | E59: 96 | F59: 0 | G59: 164.9 | H59: 0 | I59: 164.9 | J59: 0+1+0 | N59: 48th | O59: =IF(eVAL(N59)<=O$6,VLOOKUP(eVAL(N59),Multiplier,2)*eVAL(O$3),0) -> 164.9
A60: 51 | B60: BOOTE, Alexander | C60: Truro | D60: ENG | E60: 99 | F60: 0 | G60: 162.96 | H60: 0 | I60: 162.96 | J60: 0+1+0 | N60: 49th | O60: =IF(eVAL(N60)<=O$6,VLOOKUP(eVAL(N60),Multiplier,2)*eVAL(O$3),0) -> 162.96
A61: 52 | B61: DOWSE, Kieran | C61: MX Fencing | D61: NIR | E61: 99 | F61: 0 | G61: 161.02 | H61: 0 | I61: 161.02 | J61: 0+2+0 | K61: 72nd | L61: =IF(eVAL(K61)<=L$6,VLOOKUP(eVAL(K61),Multiplier,2)*eVAL(L$3),0) -> 0 | N61: 50th | O61: =IF(eVAL(N61)<=O$6,VLOOKUP(eVAL(N61),Multiplier,2)*eVAL(O$3),0) -> 161.02
A62: 53 | B62: HATELY, Lucas | C62: Shakespeare's Swords | D62: ENG | E62: 99 | F62: 0 | G62: 159.08 | H62: 0 | I62: 159.08 | J62: 0+1+0 | N62: 51st | O62: =IF(eVAL(N62)<=O$6,VLOOKUP(eVAL(N62),Multiplier,2)*eVAL(O$3),0) -> 159.08
A63: 54 | B63: BOTLEY, Pelham | C63: South London Swords | D63: ENG | E63: 96 | F63: 0 | G63: 157.14 | H63: 0 | I63: 157.14 | J63: 0+2+0 | K63: 70th | L63: =IF(eVAL(K63)<=L$6,VLOOKUP(eVAL(K63),Multiplier,2)*eVAL(L$3),0) -> 0 | N63: 52nd | O63: =IF(eVAL(N63)<=O$6,VLOOKUP(eVAL(N63),Multiplier,2)*eVAL(O$3),0) -> 157.14
A64: 55 | B64: HYDE, Matthew | C64: Strathallan | D64: SCO | E64: 98 | F64: 0 | G64: 155.2 | H64: 0 | I64: 155.2 | J64: 0+1+0 | N64: 53rd | O64: =IF(eVAL(N64)<=O$6,VLOOKUP(eVAL(N64),Multiplier,2)*eVAL(O$3),0) -> 155.2
A65: 56 | B65: BARKER, Christopher | C65: Lampeta Towne | D65: WAL | E65: 97 | F65: 0 | G65: 0 | H65: 0 | I65: 0 | J65: 0+1+0 | N65: 64th | O65: =IF(eVAL(N65)<=O$6,VLOOKUP(eVAL(N65),Multiplier,2)*eVAL(O$3),0) -> 0
A66: 56 | B66: BROPHY, Louis | C66: MX Fencing | D66: ENG | F66: 0 | G66: 0 | H66: 0 | I66: 0 | J66: 0+1+0 | N66: 67th | O66: =IF(eVAL(N66)<=O$6,VLOOKUP(eVAL(N66),Multiplier,2)*eVAL(O$3),0) -> 0
A67: 56 | B67: CLOUGH, Lewis | C67: West Fife | D67: SCO | F67: 0 | G67: 0 | H67: 0 | I67: 0 | J67: 0+1+0 | Q67: 23rd | R67: =IF(eVAL(Q67)<=R$6,VLOOKUP(eVAL(Q67),Multiplier,2)*eVAL(R$3),0) -> 0
A68: 56 | B68: COOKE, Kyle | C68: Strathallan | D68: SCO | E68: 97 | F68: 0 | G68: 0 | H68: 0 | I68: 0 | J68: 0+1+0 | N68: 60th | O68: =IF(eVAL(N68)<=O$6,VLOOKUP(eVAL(N68),Multiplier,2)*eVAL(O$3),0) -> 0
A69: 56 | B69: DAVE, Kayan | C69: South London Swords | D69: ENG | F69: 0 | G69: 0 | H69: 0 | I69: 0 | J69: 0+1+0 | N69: 56th | O69: =IF(eVAL(N69)<=O$6,VLOOKUP(eVAL(N69),Multiplier,2)*eVAL(O$3),0) -> 0
A70: 56 | B70: DINES, Benjamin | C70: Eltham College | D70: ENG | E70: 99 | F70: 0 | G70: 0 | H70: 0 | I70: 0 | J70: 0+1+0 | N70: 66th | O70: =IF(eVAL(N70)<=O$6,VLOOKUP(eVAL(N70),Multiplier,2)*eVAL(O$3),0) -> 0
A71: 56 | B71: DUMONT, Ben | C71: Guernsey | D71: GUE | E71: 98 | F71: 0 | G71: 0 | H71: 0 | I71: 0 | J71: 0+1+0 | K71: 96th | L71: =IF(eVAL(K71)<=L$6,VLOOKUP(eVAL(K71),Multiplier,2)*eVAL(L$3),0) -> 0
A72: 56 | B72: EDMUNDSON, Sam | C72: Kemnal Tech Coll | D72: ENG | E72: 94 | F72: 0 | G72: 0 | H72: 0 | I72: 0 | J72: 0+1+0 | K72: 79th | L72: =IF(eVAL(K72)<=L$6,VLOOKUP(eVAL(K72),Multiplier,2)*eVAL(L$3),0) -> 0
A73: 56 | B73: EDWARDS, Thomas | C73: Marshall | D73: ENG | E73: 99 | F73: 0 | G73: 0 | H73: 0 | I73: 0 | J73: 0+1+0 | K73: 89th | L73: =IF(eVAL(K73)<=L$6,VLOOKUP(eVAL(K73),Multiplier,2)*eVAL(L$3),0) -> 0
A74: 56 | B74: GELLETT, Charlie | C74: MX Fencing | D74: ENG | E74: 96 | F74: 0 | G74: 0 | H74: 0 | I74: 0 | J74: 0+2+0 | K74: 80th | L74: =IF(eVAL(K74)<=L$6,VLOOKUP(eVAL(K74),Multiplier,2)*eVAL(L$3),0) -> 0 | Q74: 20th | R74: =IF(eVAL(Q74)<=R$6,VLOOKUP(eVAL(Q74),Multiplier,2)*eVAL(R$3),0) -> 0
A75: 56 | B75: HAYNES, Tom | C75: MX Fencing | D75: ENG | F75: 0 | G75: 0 | H75: 0 | I75: 0 | J75: 0+1+0 | N75: 59th | O75: =IF(eVAL(N75)<=O$6,VLOOKUP(eVAL(N75),Multiplier,2)*eVAL(O$3),0) -> 0
A76: 56 | B76: HERROD, Pierse | C76: Shakespeare's Swords | D76: ENG | E76: 95 | F76: 0 | G76: 0 | H76: 0 | I76: 0 | J76: 0+1+0 | K76: 87th | L76: =IF(eVAL(K76)<=L$6,VLOOKUP(eVAL(K76),Multiplier,2)*eVAL(L$3),0) -> 0
A77: 56 | B77: JONES, Dylan | C77: Vale | D77: ENG | E77: 98 | F77: 0 | G77: 0 | H77: 0 | I77: 0 | J77: 0+1+0 | N77: 57th | O77: =IF(eVAL(N77)<=O$6,VLOOKUP(eVAL(N77),Multiplier,2)*eVAL(O$3),0) -> 0
A78: 56 | B78: JONES, Matthew | C78: Salle Ursa | D78: ENG | E78: 94 | F78: 0 | G78: 0 | H78: 0 | I78: 0 | J78: 0+1+0 | K78: 65th | L78: =IF(eVAL(K78)<=L$6,VLOOKUP(eVAL(K78),Multiplier,2)*eVAL(L$3),0) -> 0
A79: 56 | B79: LANGE-SMITH, Simon | C79: Regent | D79: JER | E79: 97 | F79: 0 | G79: 0 | H79: 0 | I79: 0 | J79: 0+2+0 | K79: 99th | L79: =IF(eVAL(K79)<=L$6,VLOOKUP(eVAL(K79),Multiplier,2)*eVAL(L$3),0) -> 0 | N79: 63rd | O79: =IF(eVAL(N79)<=O$6,VLOOKUP(eVAL(N79),Multiplier,2)*eVAL(O$3),0) -> 0
A80: 56 | B80: MANSON, Ross | C80: Wallace Fencing | D80: SCO | E80: 97 | F80: 0 | G80: 0 | H80: 0 | I80: 0 | J80: 0+1+0 | Q80: 19th | R80: =IF(eVAL(Q80)<=R$6,VLOOKUP(eVAL(Q80),Multiplier,2)*eVAL(R$3),0) -> 0
A81: 56 | B81: MARTIN, James | C81: MX Fencing | D81: ENG | F81: 0 | G81: 0 | H81: 0 | I81: 0 | J81: 0+1+0 | N81: 70th | O81: =IF(eVAL(N81)<=O$6,VLOOKUP(eVAL(N81),Multiplier,2)*eVAL(O$3),0) -> 0
A82: 56 | B82: MITCHELL-GOUGH, Warick | C82: Wrekin | D82: ENG | E82: 99 | F82: 0 | G82: 0 | H82: 0 | I82: 0 | J82: 0+1+0 | K82: 94th | L82: =IF(eVAL(K82)<=L$6,VLOOKUP(eVAL(K82),Multiplier,2)*eVAL(L$3),0) -> 0
A83: 56 | B83: REDBURN, Sam | C83: MX Fencing | D83: ENG | E83: 97 | F83: 0 | G83: 0 | H83: 0 | I83: 0 | J83: 0+3+0 | K83: 83rd | L83: =IF(eVAL(K83)<=L$6,VLOOKUP(eVAL(K83),Multiplier,2)*eVAL(L$3),0) -> 0 | N83: 68th | O83: =IF(eVAL(N83)<=O$6,VLOOKUP(eVAL(N83),Multiplier,2)*eVAL(O$3),0) -> 0 | Q83: 18th | R83: =IF(eVAL(Q83)<=R$6,VLOOKUP(eVAL(Q83),Multiplier,2)*eVAL(R$3),0) -> 0
A84: 56 | B84: REID, Arran | C84: Strathallan | D84: SCO | E84: 98 | F84: 0 | G84: 0 | H84: 0 | I84: 0 | J84: 0+1+0 | N84: 69th | O84: =IF(eVAL(N84)<=O$6,VLOOKUP(eVAL(N84),Multiplier,2)*eVAL(O$3),0) -> 0
A85: 56 | B85: ROBINSON, Nathaniel | C85: MX Fencing | D85: ENG | E85: 99 | F85: 0 | G85: 0 | H85: 0 | I85: 0 | J85: 0+1+0 | N85: 54th | O85: =IF(eVAL(N85)<=O$6,VLOOKUP(eVAL(N85),Multiplier,2)*eVAL(O$3),0) -> 0
A86: 56 | B86: SHEPERD, Miles | C86: Millfield | D86: ENG | E86: 98 | F86: 0 | G86: 0 | H86: 0 | I86: 0 | J86: 0+1+0 | N86: 58th | O86: =IF(eVAL(N86)<=O$6,VLOOKUP(eVAL(N86),Multiplier,2)*eVAL(O$3),0) -> 0
A87: 56 | B87: VIGAR, Harry | C87: Millfield | D87: ENG | E87: 98 | F87: 0 | G87: 0 | H87: 0 | I87: 0 | J87: 0+1+0 | N87: 62nd | O87: =IF(eVAL(N87)<=O$6,VLOOKUP(eVAL(N87),Multiplier,2)*eVAL(O$3),0) -> 0
A88: 56 | B88: WARWICK, Ben | C88: Northampton | D88: ENG | F88: 0 | G88: 0 | H88: 0 | I88: 0 | J88: 0+1+0 | N88: 71st | O88: =IF(eVAL(N88)<=O$6,VLOOKUP(eVAL(N88),Multiplier,2)*eVAL(O$3),0) -> 0
A89: 56 | B89: WILSON, Benjy | C89: Shakespeare's Swords | D89: ENG | E89: 98 | F89: 0 | G89: 0 | H89: 0 | I89: 0 | J89: 0+2+0 | K89: 69th | L89: =IF(eVAL(K89)<=L$6,VLOOKUP(eVAL(K89),Multiplier,2)*eVAL(L$3),0) -> 0 | N89: 64th | O89: =IF(eVAL(N89)<=O$6,VLOOKUP(eVAL(N89),Multiplier,2)*eVAL(O$3),0) -> 0
A90: 56 | B90: WILSON, James | C90: Rivington Park | D90: ENG | F90: 0 | G90: 0 | H90: 0 | I90: 0 | J90: 0+2+0 | N90: 61st | O90: =IF(eVAL(N90)<=O$6,VLOOKUP(eVAL(N90),Multiplier,2)*eVAL(O$3),0) -> 0 | Q90: 22nd | R90: =IF(eVAL(Q90)<=R$6,VLOOKUP(eVAL(Q90),Multiplier,2)*eVAL(R$3),0) -> 0
A91: 999 | B91: ALLEN, Joshua | C91: Camden | D91: ENG | E91: 96 | F91: 0 | G91: 0 | H91: 0 | I91: 0 | J91: 0+0+0
A92: 999 | B92: BEAZLEY, James | C92: Abingdon School | D92: ENG | E92: 97 | F92: 0 | G92: 0 | H92: 0 | I92: 0 | J92: 0+0+0
A93: 999 | B93: BETTLE, Will | C93: Durham Uni | D93: ENG | E93: 94 | F93: 0 | G93: 0 | H93: 0 | I93: 0 | J93: 0+0+0
A94: 999 | B94: BRAVO, Iñaki | C94: Truro | D94: SPA | E94: 98 | F94: 0 | G94: 0 | H94: 0 | I94: 0 | J94: 0+0+0
A95: 999 | B95: CLOUGHLEY, Connor | C95: West Fife | D95: SCO | E95: 95 | F95: 0 | G95: 0 | H95: 0 | I95: 0 | J95: 0+0+0
A96: 999 | B96: COTTAM, James | C96: Room 1 on 1 | D96: ENG | E96: 95 | F96: 0 | G96: 0 | H96: 0 | I96: 0 | J96: 0+0+0
A97: 999 | B97: COWELL, Matthew | C97: Bridgend | D97: WAL | E97: 98 | F97: 0 | G97: 0 | H97: 0 | I97: 0 | J97: 0+0+0
A98: 999 | B98: HENDRA, Tom | C98: Truro | D98: ENG | E98: 95 | F98: 0 | G98: 0 | H98: 0 | I98: 0 | J98: 0+0+0
A99: 999 | B99: HOLDSWORTH, George | C99: MX Fencing | D99: ENG | E99: 94 | F99: 0 | G99: 0 | H99: 0 | I99: 0 | J99: 0+0+0
A100: 999 | B100: HORRIX, Jack | C100: Camden | D100: ENG | E100: 95 | F100: 0 | G100: 0 | H100: 0 | I100: 0 | J100: 0+0+0
A101: 999 | B101: HUNKIN, Samuel | C101: Truro | D101: ENG | E101: 98 | F101: 0 | G101: 0 | H101: 0 | I101: 0 | J101: 0+0+0
A102: 999 | B102: HUNTER, Matthew | C102: Shakespeare's Swords | D102: ENG | E102: 96 | F102: 0 | G102: 0 | H102: 0 | I102: 0 | J102: 0+0+0
A103: 999 | B103: JAMES, William | C103: Ddraig Wern | D103: WAL | E103: 96 | F103: 0 | G103: 0 | H103: 0 | I103: 0 | J103: 0+0+0
A104: 999 | B104: JEANES, Christopher | C104: UCL | F104: 0 | G104: 0 | H104: 0 | I104: 0 | J104: 0+0+0
A105: 999 | B105: JENSEN, Adam | C105: Brentwood School | D105: ENG | E105: 96 | F105: 0 | G105: 0 | H105: 0 | I105: 0 | J105: 0+0+0
A106: 999 | B106: LAWRENCE, Grant | C106: Bedford | D106: ENG | E106: 96 | F106: 0 | G106: 0 | H106: 0 | I106: 0 | J106: 0+0+0
A107: 999 | B107: LOVEDAY, Emile | C107: Escrime Academy | D107: ENG | E107: 98 | F107: 0 | G107: 0 | H107: 0 | I107: 0 | J107: 0+0+0
A108: 999 | B108: MARTINEAU, Alexis | C108: Escrime | D108: ENG | E108: 98 | F108: 0 | G108: 0 | H108: 0 | I108: 0 | J108: 0+0+0
A109: 999 | B109: MIDDLEMORE, Louis | C109: Bristol | F109: 0 | G109: 0 | H109: 0 | I109: 0 | J109: 0+0+0
A110: 999 | B110: MINKLEY, Rowan | C110: Bath | D110: ENG | E110: 95 | F110: 0 | G110: 0 | H110: 0 | I110: 0 | J110: 0+0+0
A111: 999 | B111: MOORE, Christopher | C111: Shakespeare's Swords | D111: ENG | E111: 96 | F111: 0 | G111: 0 | H111: 0 | I111: 0 | J111: 0+0+0
A112: 999 | B112: PEARSON, Alex | C112: Salle Rollo | D112: SCO | E112: 94 | F112: 0 | G112: 0 | H112: 0 | I112: 0 | J112: 0+0+0
A113: 999 | B113: RAY, Daniel | C113: Guernsey | D113: GUE | E113: 98 | F113: 0 | G113: 0 | H113: 0 | I113: 0 | J113: 0+0+0
A114: 999 | B114: SPICER, Jonathan | C114: Sarnia Sword | D114: ENG | E114: 95 | F114: 0 | G114: 0 | H114: 0 | I114: 0 | J114: 0+0+0
A115: 999 | B115: VAN NIEUWERBURGH, Christian | C115: Shakespeare's Swords | D115: ENG | E115: 96 | F115: 0 | G115: 0 | H115: 0 | I115: 0 | J115: 0+0+0
A116: 999 | B116: WALLACE, Greg | C116: Bedford | D116: ENG | E116: 94 | F116: 0 | G116: 0 | H116: 0 | I116: 0 | J116: 0+0+0
A117: 999 | B117: WALLIS, Jack | C117: Room One on One | D117: ENG | E117: 95 | F117: 0 | G117: 0 | H117: 0 | I117: 0 | J117: 0+0+0
A118: 999 | B118: WATSON, Caleb | C118: South London Swords | D118: ENG | E118: 98 | F118: 0 | G118: 0 | H118: 0 | I118: 0 | J118: 0+0+0
A119: 999 | B119: WILLIAMS, Nick | C119: NLSC | D119: ENG | E119: 95 | F119: 0 | G119: 0 | H119: 0 | I119: 0 | J119: 0+0+0
A120: 999 | B120: WILSON, Calum | C120: Shakespeare's Swords | D120: WAL | E120: 94 | F120: 0 | G120: 0 | H120: 0 | I120: 0 | J120: 0+0+0

Sheet 2013-14F
K1: Hamlet Open Sabre | N1: Bedford Junior | P1: Selection Date - Sosnowiec | Q1: Gateshead | S1: Selection Date - Dormagen | T1: Sosnowiec WC, POL | W1: Dormagen WC, GER | Z1: Beazley British Championships | AB1: Selection Date - Dourdan | AC1: Ligano Sabbiadoro WC, ITA | AF1: Dourdan WC, FRA | AH1: Selection Date - European Championships | AI1: U20 National Championships | AK1: Selection Date - World Championships | AL1: European Championships, Jerusalem, ISR | AO1: World Championships, Plovdiv, BGR
B2: 26 October 2013 | K2: 07/09/2013 | N2: 29/09/2013 | P2: 29/09/2013 | Q2: 26/10/2013 | S2: 27/10/2013 | T2: 16/11/2013 | W2: 30/11/2013 | Z2: 08/12/2013 | AB2: 08/12/2013 | AC2: 04/01/2014 | AF2: 18/01/2014 | AH2: 19/01/2014 | AI2: 09/02/2014 | AK2: 09/02/2014 | AL2: 28/02-04/03/2014 | AO2: 07-12/04/2014
J3: NIF | L3: 168 (84*2) | O3: 66 | R3: 40
J4: CompType | L4: dom | O4: dom | R4: dom | U4: int | X4: int | AA4: nat | AD4: int | AG4: int | AJ4: nat | AM4: int | AP4: int
J5: Entries | L5: 53 | O5: 33 | R5: 13
J6: Cutoff | L6: 39 | O6: 24 | R6: 9
A8: Rank | B8: Name | C8: Club | D8: HC | E8: Year | F8: Nats | G8: Dom | H8: Int | I8: Total | J8: Nt+Dm+In
A9: 1 | B9: RUAUX, Emily | C9: Rivington Park | D9: ENG | E9: 95 | F9: 0 | G9: 4800 | H9: 0 | I9: 4800 | J9: 0+3+0 | K9: 2nd | L9: =IF(eVAL(K9)<=L$6,VLOOKUP(eVAL(K9),Multiplier,2)*eVAL(L$3),0) -> 3024 | N9: 3rd | O9: =IF(eVAL(N9)<=O$6,VLOOKUP(eVAL(N9),Multiplier,2)*eVAL(O$3),0) -> 1056 | Q9: 2nd | R9: =IF(eVAL(Q9)<=R$6,VLOOKUP(eVAL(Q9),Multiplier,2)*eVAL(R$3),0) -> 720
A10: 2 | B10: MAXWELL, Caitlin | C10: Truro | D10: ENG | E10: 99 | F10: 0 | G10: 4680 | H10: 0 | I10: 4680 | J10: 0+2+0 | K10: 1st | L10: =IF(eVAL(K10)<=L$6,VLOOKUP(eVAL(K10),Multiplier,2)*eVAL(L$3),0) -> 3360 | N10: 1st | O10: =IF(eVAL(N10)<=O$6,VLOOKUP(eVAL(N10),Multiplier,2)*eVAL(O$3),0) -> 1320
A11: 3 | B11: GLADDISH, Laura | C11: MX Fencing | D11: ENG | E11: 97 | F11: 0 | G11: 3351.84 | H11: 0 | I11: 3351.84 | J11: 0+2+0 | K11: 8th | L11: =IF(eVAL(K11)<=L$6,VLOOKUP(eVAL(K11),Multiplier,2)*eVAL(L$3),0) -> 2163.84 | N11: 2nd | O11: =IF(eVAL(N11)<=O$6,VLOOKUP(eVAL(N11),Multiplier,2)*eVAL(O$3),0) -> 1188
A12: 4 | B12: CHART, Maria | C12: Truro | D12: ENG | E12: 98 | F12: 0 | G12: 3035.28 | H12: 0 | I12: 3035.28 | J12: 0+2+0 | K12: 6th | L12: =IF(eVAL(K12)<=L$6,VLOOKUP(eVAL(K12),Multiplier,2)*eVAL(L$3),0) -> 2177.28 | N12: 5th | O12: =IF(eVAL(N12)<=O$6,VLOOKUP(eVAL(N12),Multiplier,2)*eVAL(O$3),0) -> 858
A13: 5 | B13: DAYKIN, Kate | C13: Salle Ossian | D13: SCO | E13: 96 | F13: 0 | G13: 2973.76 | H13: 0 | I13: 2973.76 | J13: 0+3+0 | K13: 11th | L13: =IF(eVAL(K13)<=L$6,VLOOKUP(eVAL(K13),Multiplier,2)*eVAL(L$3),0) -> 1478.4 | N13: 6th | O13: =IF(eVAL(N13)<=O$6,VLOOKUP(eVAL(N13),Multiplier,2)*eVAL(O$3),0) -> 855.36 | Q13: 3rd | R13: =IF(eVAL(Q13)<=R$6,VLOOKUP(eVAL(Q13),Multiplier,2)*eVAL(R$3),0) -> 640
A14: 6 | B14: DIXON, Harriet | C14: Millfield | D14: WAL | E14: 94 | F14: 0 | G14: 2837.84 | H14: 0 | I14: 2837.84 | J14: 0+3+0 | K14: 13th | L14: =IF(eVAL(K14)<=L$6,VLOOKUP(eVAL(K14),Multiplier,2)*eVAL(L$3),0) -> 1464.96 | N14: 14th | O14: =IF(eVAL(N14)<=O$6,VLOOKUP(eVAL(N14),Multiplier,2)*eVAL(O$3),0) -> 572.88 | Q14: 1st | R14: =IF(eVAL(Q14)<=R$6,VLOOKUP(eVAL(Q14),Multiplier,2)*eVAL(R$3),0) -> 800
A15: 7 | B15: TURNBULL, Isabel | C15: MX Fencing | D15: ENG | E15: 97 | F15: 0 | G15: 2817.52 | H15: 0 | I15: 2817.52 | J15: 0+3+0 | K15: 16th | L15: =IF(eVAL(K15)<=L$6,VLOOKUP(eVAL(K15),Multiplier,2)*eVAL(L$3),0) -> 1444.8 | N15: 7th | O15: =IF(eVAL(N15)<=O$6,VLOOKUP(eVAL(N15),Multiplier,2)*eVAL(O$3),0) -> 852.72 | Q15: 5th | R15: =IF(eVAL(Q15)<=R$6,VLOOKUP(eVAL(Q15),Multiplier,2)*eVAL(R$3),0) -> 520
A16: 8 | B16: ANIL, Shreya | C16: Camden | D16: ENG | E16: 98 | F16: 0 | G16: 1916.16 | H16: 0 | I16: 1916.16 | J16: 0+2+0 | K16: 29th | L16: =IF(eVAL(K16)<=L$6,VLOOKUP(eVAL(K16),Multiplier,2)*eVAL(L$3),0) -> 860.16 | N16: 3rd | O16: =IF(eVAL(N16)<=O$6,VLOOKUP(eVAL(N16),Multiplier,2)*eVAL(O$3),0) -> 1056
A17: 9 | B17: CORBY, Jessica | C17: West Fife | D17: SCO | E17: 98 | F17: 0 | G17: 1546 | H17: 0 | I17: 1546 | J17: 0+3+0 | K17: 37th | L17: =IF(eVAL(K17)<=L$6,VLOOKUP(eVAL(K17),Multiplier,2)*eVAL(L$3),0) -> 322.56 | N17: 10th | O17: =IF(eVAL(N17)<=O$6,VLOOKUP(eVAL(N17),Multiplier,2)*eVAL(O$3),0) -> 583.44 | Q17: 3rd | R17: =IF(eVAL(Q17)<=R$6,VLOOKUP(eVAL(Q17),Multiplier,2)*eVAL(R$3),0) -> 640
A18: 10 | B18: SMITH, Millie | C18: Truro | D18: ENG | E18: 98 | F18: 0 | G18: 1474.56 | H18: 0 | I18: 1474.56 | J18: 0+2+0 | K18: 24th | L18: =IF(eVAL(K18)<=L$6,VLOOKUP(eVAL(K18),Multiplier,2)*eVAL(L$3),0) -> 893.76 | N18: 11th | O18: =IF(eVAL(N18)<=O$6,VLOOKUP(eVAL(N18),Multiplier,2)*eVAL(O$3),0) -> 580.8
A19: 11 | B19: BANKS, Paisley | C19: Millfield | D19: ENG | E19: 96 | F19: 0 | G19: 1439.52 | H19: 0 | I19: 1439.52 | J19: 0+2+0 | K19: 30th | L19: =IF(eVAL(K19)<=L$6,VLOOKUP(eVAL(K19),Multiplier,2)*eVAL(L$3),0) -> 853.44 | N19: 9th | O19: =IF(eVAL(N19)<=O$6,VLOOKUP(eVAL(N19),Multiplier,2)*eVAL(O$3),0) -> 586.08
A20: 12 | B20: BEDDOE, Megan | C20: MX Fencing | D20: ENG | E20: 95 | F20: 0 | G20: 1426.72 | H20: 0 | I20: 1426.72 | J20: 0+3+0 | K20: 33rd | L20: =IF(eVAL(K20)<=L$6,VLOOKUP(eVAL(K20),Multiplier,2)*eVAL(L$3),0) -> 336 | N20: 13th | O20: =IF(eVAL(N20)<=O$6,VLOOKUP(eVAL(N20),Multiplier,2)*eVAL(O$3),0) -> 575.52 | Q20: 8th | R20: =IF(eVAL(Q20)<=R$6,VLOOKUP(eVAL(Q20),Multiplier,2)*eVAL(R$3),0) -> 515.2
A21: 13 | B21: BILLINGTON, Lizzie | C21: Shakespeares | D21: NIR | E21: 95 | F21: 0 | G21: 1255.68 | H21: 0 | I21: 1255.68 | J21: 0+2+0 | K21: 23rd | L21: =IF(eVAL(K21)<=L$6,VLOOKUP(eVAL(K21),Multiplier,2)*eVAL(L$3),0) -> 900.48 | Q21: 9th | R21: =IF(eVAL(Q21)<=R$6,VLOOKUP(eVAL(Q21),Multiplier,2)*eVAL(R$3),0) -> 355.2
A22: 14 | B22: HAMPSON, Sarah-Jane | C22: West Fife | D22: SCO | E22: 96 | F22: 0 | G22: 1094.96 | H22: 0 | I22: 1094.96 | J22: 0+2+0 | N22: 12th | O22: =IF(eVAL(N22)<=O$6,VLOOKUP(eVAL(N22),Multiplier,2)*eVAL(O$3),0) -> 578.16 | Q22: 7th | R22: =IF(eVAL(Q22)<=R$6,VLOOKUP(eVAL(Q22),Multiplier,2)*eVAL(R$3),0) -> 516.8
A23: 15 | B23: NOREJKO, Teresa | C23: Truro | D23: WAL | E23: 95 | F23: 0 | G23: 927.36 | H23: 0 | I23: 927.36 | J23: 0+1+0 | K23: 19th | L23: =IF(eVAL(K23)<=L$6,VLOOKUP(eVAL(K23),Multiplier,2)*eVAL(L$3),0) -> 927.36
A24: 16 | B24: DAVIES, Harriet | C24: Bath Swords | D24: ENG | E24: 94 | F24: 0 | G24: 913.92 | H24: 0 | I24: 913.92 | J24: 0+1+0 | K24: 21st | L24: =IF(eVAL(K24)<=L$6,VLOOKUP(eVAL(K24),Multiplier,2)*eVAL(L$3),0) -> 913.92
A25: 17 | B25: HUTTON, Daisy | C25: MX Fencing | D25: ENG | E25: 98 | F25: 0 | G25: 850.08 | H25: 0 | I25: 850.08 | J25: 0+2+0 | K25: 50th | L25: =IF(eVAL(K25)<=L$6,VLOOKUP(eVAL(K25),Multiplier,2)*eVAL(L$3),0) -> 0 | N25: 8th | O25: =IF(eVAL(N25)<=O$6,VLOOKUP(eVAL(N25),Multiplier,2)*eVAL(O$3),0) -> 850.08
A26: 18 | B26: BLACK, Gabrielle | C26: Escrime Academy | D26: ENG | E26: 98 | F26: 0 | G26: 846.72 | H26: 0 | I26: 846.72 | J26: 0+2+0 | K26: 31st | L26: =IF(eVAL(K26)<=L$6,VLOOKUP(eVAL(K26),Multiplier,2)*eVAL(L$3),0) -> 846.72 | N26: 27th | O26: =IF(eVAL(N26)<=O$6,VLOOKUP(eVAL(N26),Multiplier,2)*eVAL(O$3),0) -> 0
A27: 19 | B27: MOFFAT, Alice | C27: Stratford | D27: ENG | E27: 96 | F27: 0 | G27: 682.32 | H27: 0 | I27: 682.32 | J27: 0+2+0 | K27: 36th | L27: =IF(eVAL(K27)<=L$6,VLOOKUP(eVAL(K27),Multiplier,2)*eVAL(L$3),0) -> 325.92 | N27: 22nd | O27: =IF(eVAL(N27)<=O$6,VLOOKUP(eVAL(N27),Multiplier,2)*eVAL(O$3),0) -> 356.4
A28: 20 | B28: HALLIWELL Chloe | C28: Shakespeare's | D28: ENG | E28: 98 | F28: 0 | G28: 674.88 | H28: 0 | I28: 674.88 | J28: 0+2+0 | K28: 39th | L28: =IF(eVAL(K28)<=L$6,VLOOKUP(eVAL(K28),Multiplier,2)*eVAL(L$3),0) -> 315.84 | N28: 21st | O28: =IF(eVAL(N28)<=O$6,VLOOKUP(eVAL(N28),Multiplier,2)*eVAL(O$3),0) -> 359.04
A29: 21 | B29: INGOLDSBY, Rebecca | C29: Bath Swords | D29: ENG | E29: 97 | F29: 0 | G29: 570.24 | H29: 0 | I29: 570.24 | J29: 0+2+0 | K29: 46th | L29: =IF(eVAL(K29)<=L$6,VLOOKUP(eVAL(K29),Multiplier,2)*eVAL(L$3),0) -> 0 | N29: 15th | O29: =IF(eVAL(N29)<=O$6,VLOOKUP(eVAL(N29),Multiplier,2)*eVAL(O$3),0) -> 570.24
A30: 22 | B30: BUTLIN, Olivia | C30: CADS | D30: ENG | F30: 0 | G30: 567.6 | H30: 0 | I30: 567.6 | J30: 0+1+0 | N30: 16th | O30: =IF(eVAL(N30)<=O$6,VLOOKUP(eVAL(N30),Multiplier,2)*eVAL(O$3),0) -> 567.6
A31: 23 | B31: HEEPS, Katie | C31: West Fife | D31: SCO | E31: 97 | F31: 0 | G31: 518.4 | H31: 0 | I31: 518.4 | J31: 0+2+0 | K31: 43rd | L31: =IF(eVAL(K31)<=L$6,VLOOKUP(eVAL(K31),Multiplier,2)*eVAL(L$3),0) -> 0 | Q31: 6th | R31: =IF(eVAL(Q31)<=R$6,VLOOKUP(eVAL(Q31),Multiplier,2)*eVAL(R$3),0) -> 518.4
A32: 24 | B32: FOSTER, Charlotte | C32: CADS | D32: ENG | E32: 98 | F32: 0 | G32: 369.6 | H32: 0 | I32: 369.6 | J32: 0+2+0 | K32: 51st | L32: =IF(eVAL(K32)<=L$6,VLOOKUP(eVAL(K32),Multiplier,2)*eVAL(L$3),0) -> 0 | N32: 17th | O32: =IF(eVAL(N32)<=O$6,VLOOKUP(eVAL(N32),Multiplier,2)*eVAL(O$3),0) -> 369.6
A33: 25 | B33: STEVENS, Miranda | C33: MX Fencing | D33: ENG | E33: 98 | F33: 0 | G33: 366.96 | H33: 0 | I33: 366.96 | J33: 0+1+0 | N33: 18th | O33: =IF(eVAL(N33)<=O$6,VLOOKUP(eVAL(N33),Multiplier,2)*eVAL(O$3),0) -> 366.96
A34: 26 | B34: BURTON, Emma | C34: Bedford | D34: ENG | E34: 94 | F34: 0 | G34: 364.32 | H34: 0 | I34: 364.32 | J34: 0+1+0 | N34: 19th | O34: =IF(eVAL(N34)<=O$6,VLOOKUP(eVAL(N34),Multiplier,2)*eVAL(O$3),0) -> 364.32
A35: 27 | B35: NIGHTINGALE, Ella | C35: Rivington Park | D35: ENG | E35: 98 | F35: 0 | G35: 361.68 | H35: 0 | I35: 361.68 | J35: 0+2+0 | N35: 20th | O35: =IF(eVAL(N35)<=O$6,VLOOKUP(eVAL(N35),Multiplier,2)*eVAL(O$3),0) -> 361.68 | Q35: 10th | R35: =IF(eVAL(Q35)<=R$6,VLOOKUP(eVAL(Q35),Multiplier,2)*eVAL(R$3),0) -> 0
A36: 28 | B36: VIDAL, Clemence | C36: Escrime Academy | D36: ENG | E36: 99 | F36: 0 | G36: 353.76 | H36: 0 | I36: 353.76 | J36: 0+1+0 | N36: 23rd | O36: =IF(eVAL(N36)<=O$6,VLOOKUP(eVAL(N36),Multiplier,2)*eVAL(O$3),0) -> 353.76
A37: 29 | B37: RIGBY, Emily | C37: Romiley | D37: ENG | E37: 99 | F37: 0 | G37: 351.12 | H37: 0 | I37: 351.12 | J37: 0+1+0 | N37: 24th | O37: =IF(eVAL(N37)<=O$6,VLOOKUP(eVAL(N37),Multiplier,2)*eVAL(O$3),0) -> 351.12
A38: 30 | B38: ALBA, Adrienne | C38: Escrime Academy | D38: ENG | E38: 99 | F38: 0 | G38: 0 | H38: 0 | I38: 0 | J38: 0+1+0 | N38: 28th | O38: =IF(eVAL(N38)<=O$6,VLOOKUP(eVAL(N38),Multiplier,2)*eVAL(O$3),0) -> 0
A39: 30 | B39: BRAY, Jenna | C39: Truro | D39: ENG | E39: 99 | F39: 0 | G39: 0 | H39: 0 | I39: 0 | J39: 0+1+0 | K39: 41st | L39: =IF(eVAL(K39)<=L$6,VLOOKUP(eVAL(K39),Multiplier,2)*eVAL(L$3),0) -> 0
A40: 30 | B40: EDMONDS, Grace | C40: Laszlos | D40: ENG | F40: 0 | G40: 0 | H40: 0 | I40: 0 | J40: 0+1+0 | Q40: 13th | R40: =IF(eVAL(Q40)<=R$6,VLOOKUP(eVAL(Q40),Multiplier,2)*eVAL(R$3),0) -> 0
A41: 30 | B41: HISLOP, Tammy | C41: Edinburgh | D41: SCO | F41: 0 | G41: 0 | H41: 0 | I41: 0 | J41: 0+2+0 | N41: 29th | O41: =IF(eVAL(N41)<=O$6,VLOOKUP(eVAL(N41),Multiplier,2)*eVAL(O$3),0) -> 0 | Q41: 12th | R41: =IF(eVAL(Q41)<=R$6,VLOOKUP(eVAL(Q41),Multiplier,2)*eVAL(R$3),0) -> 0
A42: 30 | B42: LINTON, Ceri | C42: Barnsley | D42: ENG | E42: 96 | F42: 0 | G42: 0 | H42: 0 | I42: 0 | J42: 0+3+0 | K42: 52nd | L42: =IF(eVAL(K42)<=L$6,VLOOKUP(eVAL(K42),Multiplier,2)*eVAL(L$3),0) -> 0 | N42: 30th | O42: =IF(eVAL(N42)<=O$6,VLOOKUP(eVAL(N42),Multiplier,2)*eVAL(O$3),0) -> 0 | Q42: 11th | R42: =IF(eVAL(Q42)<=R$6,VLOOKUP(eVAL(Q42),Multiplier,2)*eVAL(R$3),0) -> 0
A43: 30 | B43: MORGAN, Eleanor | C43: CADS | D43: ENG | F43: 0 | G43: 0 | H43: 0 | I43: 0 | J43: 0+1+0 | N43: 32nd | O43: =IF(eVAL(N43)<=O$6,VLOOKUP(eVAL(N43),Multiplier,2)*eVAL(O$3),0) -> 0
A44: 30 | B44: PAHNKE, Chloe | C44: Salle Ursa | D44: ENG | E44: 99 | F44: 0 | G44: 0 | H44: 0 | I44: 0 | J44: 0+1+0 | N44: 33rd | O44: =IF(eVAL(N44)<=O$6,VLOOKUP(eVAL(N44),Multiplier,2)*eVAL(O$3),0) -> 0
A45: 30 | B45: ROSCOE, Sophie | C45: Salle Ursa | D45: ENG | E45: 99 | F45: 0 | G45: 0 | H45: 0 | I45: 0 | J45: 0+1+0 | N45: 31st | O45: =IF(eVAL(N45)<=O$6,VLOOKUP(eVAL(N45),Multiplier,2)*eVAL(O$3),0) -> 0
A46: 30 | B46: STANDISH, Madeleine | C46: Millfield | D46: ENG | E46: 98 | F46: 0 | G46: 0 | H46: 0 | I46: 0 | J46: 0+1+0 | N46: 26th | O46: =IF(eVAL(N46)<=O$6,VLOOKUP(eVAL(N46),Multiplier,2)*eVAL(O$3),0) -> 0
A47: 30 | B47: TAYLOR, Louise | C47: Marshall | D47: ENG | E47: 98 | F47: 0 | G47: 0 | H47: 0 | I47: 0 | J47: 0+1+0 | K47: 53rd | L47: =IF(eVAL(K47)<=L$6,VLOOKUP(eVAL(K47),Multiplier,2)*eVAL(L$3),0) -> 0
A48: 30 | B48: WYATT, Layla | C48: Salle Hunt Roeder | D48: ENG | E48: 97 | F48: 0 | G48: 0 | H48: 0 | I48: 0 | J48: 0+2+0 | K48: 47th | L48: =IF(eVAL(K48)<=L$6,VLOOKUP(eVAL(K48),Multiplier,2)*eVAL(L$3),0) -> 0 | N48: 25th | O48: =IF(eVAL(N48)<=O$6,VLOOKUP(eVAL(N48),Multiplier,2)*eVAL(O$3),0) -> 0
A49: 999 | B49: GWILLIM-THOMAS, Rose | C49: Headington | D49: ENG | E49: 96 | F49: 0 | G49: 0 | H49: 0 | I49: 0 | J49: 0+0+0
A50: 999 | B50: ITZKOWITZ, Aliya | C50: Camden | D50: ENG | E50: 94 | F50: 0 | G50: 0 | H50: 0 | I50: 0 | J50: 0+0+0
A51: 999 | B51: LUCAS, Bethan | C51: Bedford | D51: ENG | E51: 96 | F51: 0 | G51: 0 | H51: 0 | I51: 0 | J51: 0+0+0
A52: 999 | B52: MAIDWELL-SMITH, Alice | C52: Truro | D52: ENG | E52: 94 | F52: 0 | G52: 0 | H52: 0 | I52: 0 | J52: 0+0+0
A53: 999 | B53: NELSON, Hannah | C53: Camden | D53: ENG | E53: 95 | F53: 0 | G53: 0 | H53: 0 | I53: 0 | J53: 0+0+0
A54: 999 | B54: ROSE, Sarah | C54: St Albans | D54: ENG | E54: 94 | F54: 0 | G54: 0 | H54: 0 | I54: 0 | J54: 0+0+0
A55: 999 | B55: RUSHTON, Francesca | C55: Shakespeares | D55: ENG | E55: 94 | F55: 0 | G55: 0 | H55: 0 | I55: 0 | J55: 0+0+0
A56: 999 | B56: SLEEMAN, Kiera | C56: Truro | D56: ENG | E56: 97 | F56: 0 | G56: 0 | H56: 0 | I56: 0 | J56: 0+0+0

Sheet Mult
A1: Position Multipliers
B2: Without Reprecage | C2: With Reprecage
A3: position
A4: 0 | B4: 0 | C4: 0
A5: 1 | B5: 20 | C5: 20
A6: 2 | B6: 18 | C6: 18
A7: 3 | B7: 16 | C7: 16
A8: 5 | B8: 13 | C8: 13
A9: 6 | B9: 12.96 | C9: 12.96
A10: 7 | B10: 12.92 | C10: 12.92
A11: 8 | B11: 12.88 | C11: 12.88
A12: 9 | B12: 8.88 | C12: 10.38
A13: 10 | B13: 8.84 | C13: 10.34
A14: 11 | B14: 8.8 | C14: 10.3
A15: 12 | B15: 8.76 | C15: 10.26
A16: 13 | B16: 8.72 | C16: 8.72
A17: 14 | B17: 8.68 | C17: 8.68
A18: 15 | B18: 8.64 | C18: 8.64
A19: 16 | B19: 8.6 | C19: 8.6
A20: 17 | B20: 5.6 | C20: 7.1
A21: 18 | B21: 5.56 | C21: 7.06
A22: 19 | B22: 5.52 | C22: 7.02
A23: 20 | B23: 5.48 | C23: 6.98
A24: 21 | B24: 5.44 | C24: 6.94
A25: 22 | B25: 5.4 | C25: 6.9
A26: 23 | B26: 5.36 | C26: 6.86
A27: 24 | B27: 5.32 | C27: 6.82
A28: 25 | B28: 5.28 | C28: 5.28
A29: 26 | B29: 5.24 | C29: 5.24
A30: 27 | B30: 5.2 | C30: 5.2
A31: 28 | B31: 5.16 | C31: 5.16
A32: 29 | B32: 5.12 | C32: 5.12
A33: 30 | B33: 5.08 | C33: 5.08
A34: 31 | B34: 5.04 | C34: 5.04
A35: 32 | B35: 5 | C35: 5
A36: 33 | B36: 2 | C36: 2
A37: 34 | B37: 1.98 | C37: 1.98
A38: 35 | B38: 1.96 | C38: 1.96
A39: 36 | B39: 1.94 | C39: 1.94
A40: 37 | B40: 1.92 | C40: 1.92
A41: 38 | B41: 1.9 | C41: 1.9
A42: 39 | B42: 1.88 | C42: 1.88
A43: 40 | B43: 1.86 | C43: 1.86
A44: 41 | B44: 1.84 | C44: 1.84
A45: 42 | B45: 1.82 | C45: 1.82
A46: 43 | B46: 1.8 | C46: 1.8
A47: 44 | B47: 1.78 | C47: 1.78
A48: 45 | B48: 1.76 | C48: 1.76
A49: 46 | B49: 1.74 | C49: 1.74
A50: 47 | B50: 1.72 | C50: 1.72
A51: 48 | B51: 1.7 | C51: 1.7
A52: 49 | B52: 1.68 | C52: 1.68
A53: 50 | B53: 1.66 | C53: 1.66
A54: 51 | B54: 1.64 | C54: 1.64
A55: 52 | B55: 1.62 | C55: 1.62
A56: 53 | B56: 1.6 | C56: 1.6
A57: 54 | B57: 1.58 | C57: 1.58
A58: 55 | B58: 1.56 | C58: 1.56
A59: 56 | B59: 1.54 | C59: 1.54
A60: 57 | B60: 1.52 | C60: 1.52
A61: 58 | B61: 1.5 | C61: 1.5
A62: 59 | B62: 1.48 | C62: 1.48
A63: 60 | B63: 1.46 | C63: 1.46
A64: 61 | B64: 1.44 | C64: 1.44
A65: 62 | B65: 1.42 | C65: 1.42
A66: 63 | B66: 1.4 | C66: 1.4
A67: 64 | B67: 1.38 | C67: 1.38
A68: 65 | B68: 0 | C68: 0
